bitfinex/quotes_SOLUSD_20240727
["timestamp","ask_amount","ask_price","bid_price","bid_amount"]
[1722079657930,5.3984,185.24,185.2,12.67]
[1722079658256,5.3984,185.24,185.19,12.67]
[1722079658755,5.3984,185.24,185.2,12.67]
[1722079658961,5.3981,185.25,185.2,12.67]
[1722079660859,5.3992,185.22,185.15,6.0435]
[1722079661066,5.3994,185.21,185.15,18.7135]
[1722079662856,5.3994,185.21,185.15,6.0435]
[1722079663187,6.73680562,185.2,185.15,18.7135]
[1722079663857,6.73680562,185.2,185.15,6.0435]
[1722079664169,0.0606,185.2,185.15,18.7135]
[1722079664361,0.0606,185.2,185.16,57.67]
[1722079664661,0.0606,185.2,185.17,12.67]
[1722079665964,0.0606,185.2,185.16,57.67]
[1722079666538,0.0606,185.2,185.17,12.67]
[1722079667672,0.0606,185.2,185.18,12.67]
[1722079667845,0.0606,185.2,185.17,12.67]
[1722079668650,0.0606,185.2,185.18,12.67]
[1722079668851,0.0606,185.2,185.19,12.67]
[1722079669068,0.0606,185.2,185.19,57.67]
[1722079671661,0.0606,185.2,185.19,58.01]
[1722079677573,0.0606,185.2,185.19,57.67]
[1722079678251,0.0606,185.2,185.19,58.01]
[1722079681464,0.0606,185.2,185.19,57.67]
[1722079681661,0.0606,185.2,185.19,45.0]
[1722079681869,0.0606,185.2,185.19,57.67]
[1722079682671,0.0606,185.2,185.19,0.17]
[1722079682900,0.0606,185.2,185.15,6.0435]
[1722079682901,0.0606,185.2,185.15,18.7135]
[1722079683274,0.0606,185.2,185.18,12.67]
[1722079684679,0.0606,185.2,185.19,12.67]
[1722079686480,0.0606,185.2,185.18,12.67]
[1722079687593,0.0606,185.2,185.19,12.67]
[1722079687973,0.0606,185.2,185.19,57.67]
[1722079688787,0.0606,185.2,185.16,12.67]
[1722079688977,0.0606,185.2,185.15,18.7135]
[1722079689171,0.0606,185.2,185.16,12.67]
[1722079689373,0.0606,185.2,185.17,12.67]
[1722079689877,0.0606,185.2,185.18,12.67]
[1722079690991,0.0606,185.2,185.15,6.0435]
[1722079691295,0.0606,185.2,185.16,45.0]
[1722079692782,0.0606,185.2,185.19,12.67]
[1722079692974,0.0606,185.2,185.19,57.67]
[1722079705895,0.0606,185.2,185.19,73.9026]
[1722079707689,0.0606,185.2,185.19,73.7326]
[1722079707889,0.0606,185.2,185.19,57.67]
[1722079712311,0.0606,185.2,185.19,58.01]
[1722079716992,0.0606,185.2,185.19,57.67]
[1722079717792,0.0606,185.2,185.15,21.9361]
[1722079717999,0.0606,185.2,185.18,12.67]
[1722079718825,0.0606,185.2,185.19,12.67]
[1722079719294,0.0606,185.2,185.19,57.67]
[1722079721514,0.0606,185.2,185.19,45.0]
[1722079721714,0.0606,185.2,185.19,57.67]
[1722079721921,0.0606,185.2,185.19,45.0]
[1722079722909,0.0606,185.2,185.17,12.67]
[1722079723423,0.0606,185.2,185.18,45.0]
[1722079724096,0.0606,185.2,185.17,45.0]
[1722079729494,0.0606,185.2,185.11,30.54869954]
[1722079729695,12.7306,185.2,185.13,12.67]
[1722079729915,12.67,185.19,185.13,12.67]
[1722079730122,18.1301,185.2,185.13,12.67]
[1722079730919,18.1301,185.2,185.14,45.0]
[1722079734141,1.33720562,185.19,185.14,45.0]
[1722079734318,1.33720562,185.19,185.13,12.67]
[1722079735432,18.1301,185.2,185.13,12.67]
[1722079736220,0.0606,185.2,185.15,12.67]
[1722079736423,0.0606,185.2,185.16,12.67]
[1722079736916,0.0606,185.2,185.17,12.67]
[1722079737113,0.0606,185.2,185.18,12.67]
[1722079746940,0.0606,185.2,185.19,12.67]
[1722079747351,0.0606,185.2,185.19,57.67]
[1722079754821,0.0606,185.2,185.19,45.0]
[1722079755324,0.0606,185.2,185.15,12.67]
[1722079756629,0.0606,185.2,185.16,57.67]
[1722079756838,0.0606,185.2,185.17,12.67]
[1722079759943,0.0606,185.2,185.18,12.67]
[1722079763749,0.0606,185.2,185.16,57.67]
[1722079764525,0.0606,185.2,185.16,45.0]
[1722079764734,0.0606,185.2,185.15,12.67]
[1722079766354,0.0606,185.2,185.16,12.67]
[1722079768268,0.0606,185.2,185.17,12.67]
[1722079768560,0.0606,185.2,185.18,12.67]
[1722079775664,0.0606,185.2,185.15,12.67]
[1722079775869,0.0606,185.2,185.16,45.0]
[1722079776163,0.0606,185.2,185.15,45.0]
[1722079776553,19.46740562,185.2,185.13,12.67]
[1722079777467,18.1302,185.2,185.13,12.67]
[1722079777955,5.4602,185.2,185.14,12.67]
[1722079779867,18.1302,185.2,185.13,12.67]
[1722079780371,19.46740562,185.2,185.13,12.67]
[1722079781275,5.3998,185.19,185.13,12.67]
[1722079781465,18.0702,185.18,185.11,12.67]
[1722079781646,18.0702,185.18,185.12,45.0]
[1722079781847,12.67,185.18,185.12,45.0]
[1722079782369,5.4004,185.17,185.07,22.0355]
[1722079782555,5.4004,185.17,185.11,12.67]
[1722079784861,18.0704,185.17,185.1,12.67]
[1722079785269,18.131,185.17,185.1,12.67]
[1722079786457,5.4007,185.16,185.1,12.67]
[1722079786766,5.4007,185.16,185.07,22.0355]
[1722079786972,5.4007,185.16,185.08,45.0]
[1722079787185,5.4007,185.16,185.1,12.67]
[1722079787681,18.0707,185.16,185.09,12.67]
[1722079790558,12.67,185.16,185.09,12.67]
[1722079792877,18.0707,185.16,185.08,45.0]
[1722079793079,12.67,185.15,185.08,57.67]
[1722079793258,12.67,185.15,185.08,45.0]
[1722079793450,12.67,185.16,185.09,12.67]
[1722079797078,0.0606,185.17,185.1,12.67]
[1722079797387,0.0606,185.17,185.12,12.67]
[1722079797577,0.0606,185.17,185.13,13.75017569]
[1722079798677,0.0606,185.17,185.13,12.67]
[1722079799378,0.0606,185.17,185.14,12.67]
[1722079799678,0.0606,185.17,185.13,12.67]
[1722079800669,0.0606,185.17,185.11,45.0]
[1722079800670,0.0606,185.17,185.14,12.67]
[1722079802185,0.0606,185.17,185.15,12.67]
[1722079802899,0.0606,185.17,185.16,12.67]
[1722079803063,0.0606,185.17,185.16,57.67]
[1722079808181,0.0606,185.17,185.16,12.67]
[1722079808708,0.0606,185.17,185.12,12.67]
[1722079809005,0.0606,185.17,185.13,45.0]
[1722079810398,0.0606,185.17,185.16,12.67]
[1722079810586,0.0606,185.17,185.16,57.67]
[1722079810789,0.0606,185.17,185.16,80.0861]
[1722079810990,0.0606,185.17,185.16,80.4261]
[1722079812080,17.01022,185.3,185.16,81.50574283]
[1722079812401,22.40702,185.3,185.24,12.67]
[1722079812589,5.3969,185.29,185.23,12.67]
[1722079812788,5.3972,185.28,185.22,12.67]
[1722079813214,5.3976,185.27,185.2,12.67]
[1722079813713,18.0676,185.27,185.2,12.67]
[1722079814502,18.0676,185.27,185.21,12.67]
[1722079815488,18.0676,185.27,185.2,12.67]
[1722079815489,5.3978,185.26,185.2,12.67]
[1722079815694,18.0678,185.26,185.19,12.67]
[1722079815896,18.0681,185.25,185.18,12.67]
[1722079816206,12.67,185.24,185.19,45.0]
[1722079816388,12.67,185.24,185.1,8.11432194]
[1722079816389,18.0684,185.24,185.12,22.4161]
[1722079816590,19.40590562,185.23,185.12,22.4161]
[1722079816792,12.67,185.2,185.12,22.4161]
[1722079817114,12.67,185.2,185.13,12.67]
[1722079817319,18.0695,185.2,185.13,12.67]
[1722079817617,12.67,185.2,185.13,12.67]
[1722079817812,12.67,185.21,185.14,12.67]
[1722079818181,12.67,185.21,185.15,45.0]
[1722079818385,16.2215,185.23,185.17,12.67]
[1722079818894,16.2215,185.23,185.18,12.67]
[1722079819097,16.2215,185.28,185.2,12.67]
[1722079819286,28.8915,185.28,185.21,12.67]
[1722079820222,5.3975,185.27,185.21,12.67]
[1722079821910,28.8915,185.28,185.19,12.67]
[1722079821911,5.3983,185.25,185.19,12.67]
[1722079822908,18.0683,185.25,185.18,12.67]
[1722079823804,16.2215,185.28,185.18,12.67]
[1722079823986,20.0,185.27,185.2,12.67]
[1722079824608,32.67,185.27,185.2,12.67]
[1722079825417,32.67,185.27,185.22,12.67]
[1722079825418,20.0,185.27,185.22,12.67]
[1722079825594,16.2215,185.28,185.22,12.67]
[1722079826193,17.55870562,185.28,185.23,45.0]
[1722079827123,22.95590562,185.28,185.23,45.0]
[1722079828017,18.067,185.29,185.23,45.0]
[1722079828219,20.0,185.28,185.23,57.67]
[1722079831109,25.3973,185.28,185.23,45.0]
[1722079831302,38.0673,185.28,185.23,45.0]
[1722079831499,38.0673,185.28,185.22,45.0]
[1722079832036,5.3976,185.27,185.22,45.0]
[1722079832331,38.0672,185.28,185.22,57.67]
[1722079832500,20.0,185.28,185.22,57.67]
[1722079832898,5.3978,185.26,185.19,22.8625]
[1722079833107,12.67,185.25,185.14,1.07971433]
[1722079833314,5.3989,185.23,185.17,12.67]
[1722079833601,18.0689,185.23,185.16,12.67]
[1722079834420,5.3984,185.24,185.18,12.67]
[1722079834618,5.3994,185.21,185.17,12.67]
[1722079834816,5.399,185.22,185.16,12.67]
[1722079835216,18.0687,185.23,185.16,12.67]
[1722079835415,5.3991,185.22,185.16,12.67]
[1722079835612,5.3991,185.22,185.17,12.67]
[1722079837010,5.3991,185.22,185.16,12.67]
[1722079837518,16.3886,185.25,185.13,22.8625]
[1722079837519,16.3886,185.25,185.18,12.67]
[1722079837723,20.0,185.24,185.18,12.67]
[1722079837924,12.67,185.28,185.21,12.67]
[1722079838302,18.0672,185.28,185.21,12.67]
[1722079838527,18.0672,185.28,185.2,12.67]
[1722079839031,5.3975,185.27,185.2,12.67]
[1722079839402,17.17732,185.3,185.22,12.67]
[1722079839607,5.55797837,185.35,185.19,45.34]
[1722079839608,17.17732,185.48,185.29,16.24]
[1722079839808,12.67,185.37,185.27,1.07882056]
[1722079840140,13.4867,185.37,185.22,6.25]
[1722079840312,6.1116,185.36,185.2,16.6125]
[1722079840510,6.1116,185.36,185.17,6.25]
[1722079840511,20.0,185.31,185.17,6.25]
[1722079840734,5.3987,185.23,185.17,6.25]
[1722079840913,33.4911,185.31,185.17,6.25]
[1722079840914,13.4911,185.31,185.17,6.25]
[1722079841119,16.3886,185.33,185.18,1.07986396]
[1722079841321,5.3969,185.29,185.19,25.23]
[1722079841527,20.0,185.28,185.19,25.23]
[1722079841715,21.7846,185.33,185.2,45.34]
[1722079842031,16.3886,185.33,185.2,45.34]
[1722079842207,5.3966,185.3,185.2,45.34]
[1722079843107,20.0,185.29,185.2,45.34]
[1722079843406,5.3972,185.29,185.2,45.0]
[1722079843604,20.0,185.32,185.2,45.0]
[1722079843605,25.3972,185.28,185.2,45.0]
[1722079843831,20.0,185.32,185.2,45.0]
[1722079844429,5.3965,185.31,185.2,45.0]
[1722079844638,20.0,185.3,185.17,6.25]
[1722079844931,25.23,185.31,185.17,6.25]
[1722079845128,20.0,185.3,185.17,6.25]
[1722079845302,5.3984,185.24,185.17,6.25]
[1722079846032,20.0,185.3,185.17,6.25]
[1722079846033,5.3981,185.25,185.17,6.25]
[1722079846221,20.0,185.24,185.17,6.25]
[1722079846425,20.0,185.24,185.18,45.0]
[1722079850211,5.398,185.26,185.18,45.0]
[1722079850417,20.0,185.25,185.18,45.0]
[1722079850647,25.3981,185.25,185.18,45.0]
[1722079853038,25.3981,185.25,185.17,6.25]
[1722079853039,5.3984,185.24,185.17,6.25]
[1722079853636,20.0,185.25,185.17,6.25]
[1722079853821,5.3977,185.27,185.18,45.0]
[1722079854021,20.0,185.26,185.18,45.0]
[1722079854426,5.3977,185.27,185.18,45.0]
[1722079854652,5.3972,185.29,185.18,46.07970519]
[1722079854950,5.3972,185.29,185.19,0.34]
[1722079855246,5.3966,185.3,185.19,0.34]
[1722079855547,5.3968,185.3,185.19,0.34]
[1722079856050,5.3969,185.29,185.19,0.34]
[1722079856752,25.3972,185.28,185.18,45.0]
[1722079857328,5.3975,185.27,185.18,45.0]
[1722079858755,5.3979,185.26,185.18,45.0]
[1722079858962,5.3981,185.25,185.18,45.0]
[1722079860442,5.3986,185.24,185.17,6.25]
[1722079860644,5.3984,185.24,185.17,6.25]
[1722079861550,5.3987,185.23,185.17,6.25]
[1722079862455,13.4945,185.27,185.17,6.25]
[1722079862635,5.3986,185.24,185.17,6.25]
[1722079864132,5.3995,185.2,185.12,22.7312]
[1722079864340,38.7259,185.25,185.12,22.7312]
[1722079864550,13.4976,185.22,185.12,22.7312]
[1722079864750,5.4005,185.17,185.12,22.7312]
[1722079864950,5.4007,185.16,185.12,22.7312]
[1722079865256,5.4005,185.17,185.12,22.7312]
[1722079865439,20.0,185.16,185.12,22.7312]
[1722079866140,20.0,185.18,185.12,22.7312]
[1722079867367,25.3999,185.19,185.12,22.7312]
[1722079867540,25.3999,185.19,185.13,45.0]
[1722079867862,25.3999,185.19,185.12,22.7312]
[1722079868063,20.0,185.19,185.12,22.7312]
[1722079868239,20.0,185.21,185.12,22.7312]
[1722079868942,5.4,185.19,185.12,22.7312]
[1722079869142,20.0,185.18,185.12,22.7312]
[1722079869558,5.3996,185.2,185.12,22.7312]
[1722079869738,20.0,185.19,185.13,45.0]
[1722079869948,25.3998,185.19,185.13,45.0]
[1722079870260,20.0,185.19,185.13,45.0]
[1722079870650,20.0,185.2,185.13,45.0]
[1722079870853,25.3995,185.2,185.13,45.0]
[1722079871147,20.0,185.2,185.13,45.0]
[1722079871350,20.0,185.21,185.13,45.0]
[1722079871536,5.3989,185.22,185.13,45.0]
[1722079871738,5.3989,185.22,185.14,0.34]
[1722079871939,5.3993,185.21,185.13,45.0]
[1722079872158,5.3996,185.2,185.13,45.0]
[1722079873036,5.3993,185.21,185.13,45.0]
[1722079873255,5.399,185.22,185.13,45.0]
[1722079873659,5.3984,185.24,185.13,45.0]
[1722079873836,20.0,185.23,185.14,0.34]
[1722079874038,25.3987,185.23,185.14,0.34]
[1722079874233,20.0,185.23,185.14,0.34]
[1722079874438,5.3984,185.24,185.14,0.34]
[1722079875246,5.3981,185.25,185.14,25.57]
[1722079875443,5.3981,185.25,185.15,45.0]
[1722079875648,20.0,185.24,185.16,0.34]
[1722079876072,20.0,185.24,185.17,22.0719]
[1722079876368,16.1419,185.3,185.18,45.0]
[1722079876540,33.4929,185.29,185.18,45.0]
[1722079876746,5.3989,185.23,185.17,22.0719]
[1722079877857,13.4942,185.27,185.17,6.1187]
[1722079878055,13.4958,185.25,185.17,6.1187]
[1722079878269,5.3996,185.2,185.17,6.1187]
[1722079879675,5.3993,185.21,185.17,6.1187]
[1722079880888,5.3995,185.2,185.17,6.1187]
[1722079881368,5.3993,185.21,185.17,6.1187]
[1722079884873,5.399,185.22,185.17,6.1187]
[1722079887078,5.3993,185.21,185.17,6.1187]
[1722079889166,12.62,185.22,185.15,12.62]
[1722079889373,20.0,185.24,185.14,12.62]
[1722079889877,33.87229902,185.24,185.17,12.62]
[1722079891959,5.3992,185.22,185.17,12.62]
[1722079892256,1.25229902,185.24,185.2,12.62]
[1722079892962,5.3982,185.25,185.2,12.62]
[1722079895379,5.3978,185.26,185.2,12.62]
[1722079895576,5.3978,185.26,185.21,12.62]
[1722079895577,20.0,185.25,185.21,12.62]
[1722079895780,12.62,185.3,185.23,12.62]
[1722079895986,5.3974,185.28,185.24,12.62]
[1722079896190,20.0,185.27,185.24,12.62]
[1722079896689,20.0,185.27,185.23,12.62]
[1722079897884,5.3974,185.28,185.23,12.62]
[1722079898189,5.3974,185.28,185.24,12.62]
[1722079898478,5.3969,185.29,185.25,12.62]
[1722079898683,5.3966,185.3,185.26,12.62]
[1722079900077,5.3962,185.32,185.27,12.62]
[1722079900282,20.0,185.31,185.27,12.62]
[1722079900486,25.3965,185.31,185.27,12.62]
[1722079901294,5.397,185.29,185.22,12.62]
[1722079901470,20.0,185.31,185.21,21.6887]
[1722079901471,32.62,185.31,185.21,21.6887]
[1722079901677,32.62,185.31,185.24,12.62]
[1722079901986,5.3969,185.29,185.24,12.62]
[1722079902589,5.3969,185.29,185.25,12.62]
[1722079902767,5.3972,185.28,185.24,12.62]
[1722079903477,5.3972,185.28,185.23,12.62]
[1722079903674,5.3975,185.27,185.23,12.62]
[1722079904073,5.3973,185.28,185.23,12.62]
[1722079904670,5.3973,185.28,185.24,12.62]
[1722079904865,5.3973,185.28,185.25,12.62]
[1722079905271,5.3973,185.28,185.21,21.6887]
[1722079905475,5.3973,185.28,185.25,12.62]
[1722079906194,5.397,185.29,185.25,12.62]
[1722079906693,25.3964,185.31,185.27,12.62]
[1722079907795,5.3966,185.3,185.25,12.62]
[1722079907996,20.0,185.29,185.25,12.62]
[1722079908197,5.3966,185.3,185.25,12.62]
[1722079908497,5.397,185.29,185.25,12.62]
[1722079908707,5.3975,185.27,185.21,21.6887]
[1722079908892,25.3972,185.28,185.23,12.62]
[1722079910209,20.0,185.28,185.25,12.62]
[1722079911587,25.3973,185.28,185.25,12.62]
[1722079911803,20.0,185.28,185.25,12.62]
[1722079912597,25.3972,185.28,185.25,12.62]
[1722079916410,25.3972,185.28,185.24,12.62]
[1722079916788,25.3972,185.28,185.25,12.62]
[1722079916989,20.0,185.28,185.25,12.62]
[1722079917609,12.62,185.34,185.27,12.62]
[1722079917787,12.62,185.34,185.3,12.62]
[1722079917788,5.3955,185.34,185.3,12.62]
[1722079917994,5.3955,185.34,185.23,1.07941229]
[1722079917995,5.3954,185.35,185.31,12.62]
[1722079918682,5.3955,185.34,185.31,12.62]
[1722079918888,5.3961,185.32,185.29,12.62]
[1722079919087,5.3961,185.32,185.28,12.62]
[1722079919709,5.3961,185.32,185.27,19.0812]
[1722079920112,5.3961,185.32,185.27,12.62]
[1722079921111,5.3966,185.3,185.26,12.62]
[1722079921310,13.4876,185.36,185.24,12.62]
[1722079921311,5.397,185.29,185.24,12.62]
[1722079921690,5.3967,185.3,185.24,12.62]
[1722079921910,5.3967,185.3,185.25,12.62]
[1722079923013,13.4891,185.34,185.27,12.62]
[1722079923014,12.62,185.34,185.27,12.62]
[1722079923204,12.62,185.34,185.23,23.0636]
[1722079923205,25.396,185.33,185.28,12.62]
[1722079923714,5.396,185.32,185.27,12.62]
[1722079923896,20.0,185.31,185.27,12.62]
[1722079924414,13.4866,185.37,185.28,12.62]
[1722079924415,5.3958,185.33,185.28,12.62]
[1722079924603,20.0,185.32,185.28,12.62]
[1722079924798,5.3955,185.34,185.29,12.62]
[1722079925000,20.0,185.33,185.29,12.62]
[1722079925406,5.3952,185.35,185.3,12.62]
[1722079925700,5.3949,185.36,185.32,12.62]
[1722079926417,5.3946,185.37,185.32,12.62]
[1722079927016,5.3949,185.36,185.33,12.62]
[1722079927393,5.3946,185.37,185.33,12.62]
[1722079927602,42.5162,185.4,185.33,12.62]
[1722079927603,5.3945,185.38,185.33,12.62]
[1722079927908,5.3945,185.38,185.32,12.62]
[1722079928298,5.3945,185.38,185.33,12.62]
[1722079928812,5.3946,185.37,185.32,12.62]
[1722079930510,5.3943,185.38,185.32,12.62]
[1722079930906,29.0316,185.4,185.32,12.62]
[1722079930907,5.3946,185.37,185.32,12.62]
[1722079931410,5.3946,185.37,185.31,12.62]
[1722079931614,12.62,185.38,185.31,12.62]
[1722079931818,5.3946,185.37,185.3,19.1727]
[1722079932021,12.62,185.39,185.32,12.62]
[1722079932203,20.0,185.38,185.32,12.62]
[1722079932522,20.0,185.38,185.34,12.62]
[1722079932821,20.0,185.39,185.35,12.62]
[1722079933724,5.3929,185.43,185.37,12.62]
[1722079933919,5.3929,185.43,185.38,12.62]
[1722079934122,28.0203,185.45,185.37,12.62]
[1722079934123,5.3932,185.42,185.37,12.62]
[1722079934422,5.3929,185.43,185.38,12.62]
[1722079935509,5.3929,185.43,185.39,12.62]
[1722079935707,5.3919,185.47,185.42,12.62]
[1722079935913,0.78872,185.48,185.45,12.62]
[1722079936424,5.3917,185.47,185.43,12.62]
[1722079936816,5.392,185.46,185.43,12.62]
[1722079937132,0.78872,185.48,185.43,12.62]
[1722079937301,0.78872,185.48,185.44,12.62]
[1722079937714,0.78872,185.48,185.45,12.62]
[1722079939315,0.78872,185.48,185.4,12.62]
[1722079939316,0.78872,185.48,185.47,12.62]
[1722079939795,0.78872,185.48,185.44,15.4664]
[1722079939995,0.78872,185.48,185.41,0.17]
[1722079940222,0.78872,185.48,185.4,15.4664]
[1722079940223,5.393,185.43,185.4,15.4664]
[1722079940399,12.62,185.45,185.38,19.1727]
[1722079940607,18.0125,185.45,185.38,19.1727]
[1722079940803,5.3925,185.45,185.4,12.62]
[1722079941225,5.3922,185.46,185.38,6.5527]
[1722079941409,20.0,185.45,185.38,6.5527]
[1722079941706,5.3922,185.46,185.39,45.0]
[1722079941909,0.78872,185.48,185.39,46.07851675]
[1722079942108,0.78872,185.48,185.4,1.24851675]
[1722079942332,0.78872,185.48,185.41,0.17]
[1722079942845,5.3918,185.47,185.4,0.17]
[1722079943021,5.392,185.46,185.39,45.0]
[1722079943711,0.78872,185.48,185.39,45.0]
[1722079943937,0.78872,185.48,185.4,0.34]
[1722079948457,0.78872,185.48,185.41,16.5724]
[1722079948622,0.78872,185.48,185.42,46.41822932]
[1722079948830,0.78872,185.48,185.43,32.67682868]
[1722079949024,0.78872,185.48,185.44,45.0]
[1722079949226,0.78872,185.48,185.45,1.07817874]
[1722079949431,0.78872,185.48,185.46,1.07816087]
[1722079949627,0.78872,185.48,185.44,45.0]
[1722079950314,0.78872,185.48,185.43,31.5986]
[1722079950536,0.78872,185.48,185.43,6.4186]
[1722079950722,6.18012,185.48,185.43,6.4186]
[1722079951634,5.3917,185.47,185.43,6.4186]
[1722079951840,5.3923,185.45,185.41,16.5724]
[1722079952044,0.78872,185.48,185.41,16.5724]
[1722079952235,6.18022,185.48,185.41,16.5724]
[1722079954127,0.78872,185.48,185.41,16.5724]
[1722079954452,20.78872,185.48,185.41,16.5724]
[1722079955128,26.18012,185.48,185.41,16.5724]
[1722079957047,26.18012,185.48,185.42,45.0]
[1722079957549,26.18012,185.48,185.41,16.5724]
[1722079957751,20.78872,185.48,185.41,16.5724]
[1722079957930,0.78872,185.48,185.42,45.0]
[1722079961048,0.78872,185.48,185.43,12.59]
[1722079961923,0.78872,185.48,185.44,12.59]
[1722079964630,6.18032,185.48,185.42,45.0]
[1722079964945,6.18032,185.48,185.42,57.59]
[1722079965144,0.78872,185.48,185.42,57.59]
[1722079965347,6.18012,185.48,185.42,57.59]
[1722079965845,6.18012,185.48,185.43,12.59]
[1722079966355,0.78872,185.48,185.43,12.59]
[1722079966535,0.78872,185.48,185.44,12.59]
[1722079969734,0.78872,185.48,185.47,12.59]
[1722079970130,0.78872,185.48,185.47,28.2577]
[1722079970554,0.78872,185.48,185.47,12.59]
[1722079971260,0.78872,185.48,185.46,6.3804]
[1722079971543,0.78872,185.48,185.46,12.59]
[1722079971747,0.78872,185.48,185.47,12.59]
[1722079973632,0.78872,185.48,185.46,12.59]
[1722079975766,0.78872,185.48,185.47,12.59]
[1722079976843,0.78872,185.48,185.47,51.3804]
[1722079977157,0.78872,185.48,185.47,63.9704]
[1722079978348,0.78872,185.48,185.47,12.59]
[1722079980572,0.78872,185.48,185.43,15.6677]
[1722079981063,0.78872,185.48,185.47,12.59]
[1722079987881,0.78872,185.48,185.47,57.76]
[1722079988167,0.78872,185.48,185.47,57.93]
[1722079989757,0.78872,185.48,185.47,70.52]
[1722079990473,0.78872,185.48,185.47,57.93]
[1722079990774,0.78872,185.48,185.47,70.52]
[1722079991094,0.78872,185.48,185.47,57.93]
[1722079991256,0.78872,185.48,185.47,70.52]
[1722079991581,0.78872,185.48,185.47,77.1654]
[1722079994672,0.78872,185.48,185.47,93.3954]
[1722079994861,16.6258,185.59,185.55,12.59]
[1722079995064,12.59,185.58,185.51,12.59]
[1722079995266,5.3892,185.56,185.51,12.59]
[1722079995673,20.0,185.57,185.53,12.59]
[1722079996058,20.0,185.57,185.54,12.59]
[1722079996259,5.3885,185.58,185.54,12.59]
[1722079996260,16.6258,185.59,185.54,12.59]
[1722079996683,5.3879,185.6,185.55,12.59]
[1722079996987,5.3877,185.61,185.56,12.59]
[1722079997274,5.3874,185.62,185.57,12.59]
[1722079997478,5.3879,185.6,185.56,12.59]
[1722079997683,5.3879,185.6,185.55,12.59]
[1722079997888,5.3883,185.59,185.55,12.59]
[1722079998687,5.3879,185.6,185.55,12.59]
[1722079999474,21.6312,185.63,185.56,12.59]
[1722079999673,20.0,185.62,185.56,12.59]
[1722080000684,25.3874,185.62,185.56,12.59]
[1722080000857,5.3876,185.61,185.56,12.59]
[1722080001063,5.3876,185.61,185.57,12.59]
[1722080001981,25.3874,185.62,185.57,12.59]
[1722080002559,25.3874,185.62,185.56,12.59]
[1722080003564,5.3876,185.61,185.56,12.59]
[1722080003763,5.3879,185.6,185.55,12.59]
[1722080003961,20.0,185.62,185.57,12.59]
[1722080004156,20.0,185.62,185.58,12.59]
[1722080004484,20.0,185.62,185.57,12.59]
[1722080004800,5.3877,185.61,185.56,12.59]
[1722080005091,5.3879,185.6,185.56,12.59]
[1722080005292,16.2441,185.63,185.54,6.4341]